bitfinex/quotes_ETHUSD_20220212
["timestamp","ask_amount","ask_price","bid_price","bid_amount"]
[1644654296064,0.30143565,2937.0,2936.8,0.4017755]
[1644654296267,0.00143565,2937.0,2936.8,0.40924626]
[1644654297065,0.00143565,2937.0,2936.8,0.4017755]
[1644654297463,0.00143565,2937.0,2936.8,0.40924626]
[1644654298310,0.00143565,2937.0,2936.8,0.4017755]
[1644654298715,0.00143565,2937.0,2936.8,0.40924626]
[1644654299517,0.00143565,2937.0,2936.8,0.4017755]
[1644654299718,0.00143565,2937.0,2936.8,0.40940621]
[1644654299916,0.00143565,2937.0,2936.8,0.39422716]
[1644654300817,0.00143565,2937.0,2936.8,0.38659645]
[1644654301019,0.00143565,2937.0,2936.8,0.39422716]
[1644654302062,0.00143565,2937.0,2936.8,0.38659645]
[1644654302260,0.00143565,2937.0,2936.8,0.39422716]
[1644654302666,0.30143565,2937.0,2936.8,0.39422716]
[1644654302972,0.60143565,2937.0,2936.8,0.39422716]
[1644654303166,3.93749919,2937.0,2936.8,0.38659645]
[1644654303367,1.29619399,2936.9,2936.8,0.3942056]
[1644654303566,0.1701,2936.9,2936.8,0.3942056]
[1644654304066,4.86411278,2936.9,2936.8,0.3942056]
[1644654304268,4.86411278,2936.9,2936.8,0.38659645]
[1644654304466,4.56791879,2936.9,2936.8,0.38659645]
[1644654304765,4.56791879,2936.9,2936.8,0.25926541]
[1644654305165,1.1701,2936.9,2936.8,0.25926541]
[1644654305364,3.43960127,2936.9,2936.8,0.25926541]
[1644654305811,4.43960127,2936.9,2936.8,0.25926541]
[1644654306613,1.1701,2936.9,2936.8,0.25926541]
[1644654306814,0.1701,2936.9,2936.8,0.25926541]
[1644654307415,1.29967066,2936.9,2936.8,0.25926541]
[1644654307815,2.29967066,2936.9,2936.8,0.25926541]
[1644654308515,1.29967066,2936.9,2936.8,0.25926541]
[1644654310166,0.60143565,2937.0,2936.8,0.25926541]
[1644654310167,2.3309437,2937.0,2936.8,0.25926541]
[1644654310362,0.5791,2936.9,2936.8,0.25926541]
[1644654310765,1.5791,2936.9,2936.8,0.25926541]
[1644654311465,2.41955539,2936.9,2936.8,0.25926541]
[1644654311864,1.41955539,2936.9,2936.8,0.25926541]
[1644654312067,2.41955539,2936.9,2936.8,0.25926541]
[1644654312265,2.41955539,2936.9,2936.8,0.20364839]
[1644654316320,2.41955539,2936.9,2936.8,0.09134386]
[1644654316521,2.41955539,2936.9,2936.8,0.0173773]
[1644654317772,3.25,2936.8,2936.2,8.94e-05]
[1644654317973,3.25,2936.8,2935.4,3.9667]
[1644654317974,0.852202,2936.2,2935.4,3.9667]
[1644654318171,0.86589452,2935.6,2935.4,3.9667]
[1644654318378,0.86589452,2935.5,2935.0,1.2182]
[1644654318684,0.409,2935.4,2934.6,0.00410927]
[1644654318875,0.709,2935.4,2934.6,0.00410927]
[1644654319078,0.3,2935.3,2934.6,0.00410927]
[1644654319274,0.409,2935.3,2934.6,0.00410927]
[1644654319477,1.57489452,2935.3,2934.6,0.00410927]
[1644654319675,0.709,2935.3,2934.6,0.00410927]
[1644654320281,1.57489452,2935.3,2934.6,0.00410927]
[1644654320674,0.709,2935.3,2934.6,0.00410927]
[1644654321421,1.709,2935.3,2934.6,0.00410927]
[1644654322213,1.47132205,2935.3,2934.6,0.00410927]
[1644654322414,2.47132205,2935.3,2934.6,0.00410927]
[1644654322814,3.33721657,2935.3,2934.6,0.00410927]
[1644654323214,3.33721657,2935.3,2934.6,3.40410927]
[1644654323215,0.1703,2935.2,2934.6,3.40410927]
[1644654323418,0.409,2935.1,2934.6,3.4]
[1644654323615,0.85948559,2934.8,2934.7,0.00410927]
[1644654323818,0.409,2935.1,2934.6,3.4]
[1644654323819,2.42742812,2935.1,2934.6,3.4]
[1644654324023,0.3,2934.8,2934.6,3.4]
[1644654324568,0.409,2934.7,2934.6,3.4]
[1644654324761,0.709,2934.7,2934.6,3.4]
[1644654325162,1.009,2934.7,2934.6,3.4]
[1644654327162,1.009,2934.7,2934.6,2.34934997]
[1644654327366,7.1674,2934.7,2934.6,2.34934997]
[1644654327563,7.1674,2934.7,2934.6,1.42145983]
[1644654327564,2.1674,2934.7,2934.6,1.42145983]
[1644654327763,3.1674,2934.7,2934.6,1.42145983]
[1644654327970,2.1674,2934.7,2934.6,1.42145983]
[1644654328163,3.1674,2934.7,2934.6,1.42145983]
[1644654328621,2.8914,2934.7,2934.6,1.42145983]
[1644654329421,1.8914,2934.7,2934.6,1.42145983]
[1644654329623,2.8914,2934.7,2934.6,1.42145983]
[1644654330024,1.8914,2934.7,2934.6,1.42145983]
[1644654330221,2.8914,2934.7,2934.6,1.42145983]
[1644654330722,1.8914,2934.7,2934.6,1.42145983]
[1644654330921,2.8914,2934.7,2934.6,1.42145983]
[1644654331123,1.8914,2934.7,2934.6,1.42145983]
[1644654331323,2.8914,2934.7,2934.6,1.42145983]
[1644654331526,1.8914,2934.7,2934.6,1.42145983]
[1644654331726,2.8914,2934.7,2934.6,1.42145983]
[1644654332965,2.7211,2934.7,2934.6,1.42145983]
[1644654333770,1.7211,2934.7,2934.6,1.42145983]
[1644654333970,2.7211,2934.7,2934.6,1.42145983]
[1644654334376,1.7211,2934.7,2934.6,1.42145983]
[1644654334569,2.7211,2934.7,2934.6,1.42145983]
[1644654336309,1.7211,2934.7,2934.6,1.42145983]
[1644654336509,2.009,2934.7,2934.6,1.42145983]
[1644654338211,1.009,2934.7,2934.6,1.42145983]
[1644654338422,2.009,2934.7,2934.6,1.42145983]
[1644654338618,1.009,2934.7,2934.6,1.42145983]
[1644654338920,2.009,2934.7,2934.6,1.42145983]
[1644654339964,1.009,2934.7,2934.6,1.42145983]
[1644654342464,1.009,2934.7,2934.6,0.96170363]
[1644654342865,0.409,2934.7,2934.6,0.96170363]
[1644654343321,0.409,2935.2,2934.6,0.96170363]
[1644654343525,0.409,2935.2,2934.7,0.00410927]
[1644654343924,0.409,2935.2,2934.8,0.00803261]
[1644654344324,0.709,2935.2,2934.8,0.00803261]
[1644654344731,2.4140894,2935.2,2934.8,0.00803261]
[1644654344927,0.3,2935.1,2934.7,0.00410927]
[1644654345129,1.709,2935.2,2934.9,0.00803251]
[1644654345130,0.409,2935.2,2934.9,0.00803251]
[1644654346128,0.409,2935.2,2934.7,0.00410927]
[1644654346328,0.409,2935.2,2934.9,0.00803252]
[1644654346528,0.709,2935.2,2934.9,0.00803252]
[1644654347086,1.709,2935.2,2934.9,0.00803252]
[1644654347284,1.709,2935.2,2934.7,0.00410927]
[1644654347477,1.709,2935.2,2934.9,0.00803252]
[1644654348478,1.709,2935.2,2934.7,0.00410927]
[1644654348678,1.709,2935.2,2934.9,0.00803252]
[1644654349678,1.709,2935.2,2934.7,0.00410927]
[1644654349889,1.709,2935.2,2934.9,0.0080327]
[1644654350916,1.709,2935.2,2934.7,0.00410927]
[1644654351117,1.709,2935.2,2934.9,0.0080327]
[1644654352116,1.709,2935.2,2934.7,0.00410927]
[1644654352322,1.8793,2935.2,2934.9,0.0080327]
[1644654352522,1.709,2935.2,2934.9,0.0080327]
[1644654353319,1.709,2935.2,2934.7,0.00410927]
[1644654353721,1.709,2935.2,2934.9,0.0080325]
[1644654354321,0.709,2935.2,2934.9,0.0080325]
[1644654354570,0.709,2935.2,2934.7,0.00410927]
[1644654354571,1.709,2935.2,2934.7,0.00410927]
[1644654354861,1.709,2935.2,2934.9,0.0080325]
[1644654354862,1.3,2935.2,2934.9,0.0080325]
[1644654355466,1.3,2935.2,2935.1,0.00283169]
[1644654355866,0.3,2935.2,2935.1,0.00283169]
[1644654356067,1.3,2935.2,2935.1,0.00283169]
[1644654356665,2.7478,2935.3,2935.1,0.00283169]
[1644654357370,1.6,2935.3,2935.1,0.00283169]
[1644654357577,1.46914178,2935.7,2935.1,0.00283169]
[1644654357772,0.3,2935.6,2935.1,0.00283169]
[1644654357974,0.3,2935.7,2935.1,0.00283169]
[1644654358172,1.46914178,2936.1,2935.1,0.00283169]
[1644654358419,2.46914178,2936.1,2935.2,0.82141943]
[1644654358617,1.29884178,2935.9,2935.2,0.82141943]
[1644654358817,1.89884178,2935.9,2935.2,0.00803221]
[1644654359019,0.3,2935.8,2935.2,0.00803221]
[1644654359217,1.59884178,2935.9,2935.2,0.00803221]
[1644654359416,1.59884178,2935.9,2935.1,0.00283169]
[1644654359417,0.3,2935.9,2935.1,0.00283169]
[1644654359618,0.1703,2935.8,2935.4,0.00803206]
[1644654359818,1.29884178,2936.0,2935.4,0.00803206]
[1644654360018,1.29884178,2935.9,2935.4,0.00803206]
[1644654360227,1.29884178,2936.0,2935.4,0.00803206]
[1644654360418,0.1703,2936.1,2935.4,0.00803206]
[1644654360419,1.29884178,2935.9,2935.4,0.00803206]
[1644654360619,1.29884178,2935.9,2935.2,0.68528706]
[1644654360820,0.1703,2935.8,2935.6,0.00803183]
[1644654361819,1.46914178,2935.8,2934.8,3.41224575]
[1644654362073,1.46914178,2935.8,2934.8,0.00410927]
[1644654362074,1.30012954,2935.5,2934.8,0.00410927]
[1644654362266,1.90012954,2935.5,2934.8,0.00410927]
[1644654362464,0.60262146,2935.5,2934.8,0.00410927]
[1644654362665,0.30262146,2935.5,2934.8,0.00410927]
[1644654363169,0.30262146,2935.5,2935.0,0.0080324]
[1644654364082,0.30262146,2935.5,2934.8,0.00410927]
[1644654364083,1.60012954,2935.5,2934.8,0.00410927]
[1644654364575,1.90012954,2935.5,2935.1,0.00803227]
[1644654365482,1.90012954,2935.5,2934.8,0.00410927]
[1644654365679,1.90012954,2935.5,2935.2,0.00803222]
[1644654366519,1.90012954,2935.5,2934.8,0.00410927]
[1644654366520,1.29750808,2935.3,2934.8,0.00410927]
[1644654366715,1.59839514,2935.2,2934.8,0.00410927]
[1644654366916,0.1703,2935.1,2934.8,0.00410927]
[1644654367123,0.1703,2935.1,2934.6,0.00410927]
[1644654367319,0.1703,2935.1,2934.3,0.03624822]
[1644654367520,1.46780808,2935.1,2934.3,0.03624822]
[1644654367720,1.46780808,2935.1,2934.3,0.00410927]
[1644654367919,2.46780808,2935.1,2934.3,0.00410927]
[1644654368126,2.46780808,2935.1,2934.6,0.00803286]
[1644654368320,1.46780808,2935.1,2934.6,0.00803286]
[1644654368520,2.46780808,2935.1,2934.6,0.00803286]
[1644654368920,2.46780808,2935.1,2934.3,3.40410927]
[1644654369322,1.46780808,2935.1,2934.7,0.00803271]
[1644654369578,2.46780808,2935.1,2934.7,0.00803271]
[1644654370173,2.46780808,2935.1,2934.3,3.43624493]
[1644654370174,1.46780808,2935.1,2934.3,3.40410927]
[1644654370372,2.46780808,2935.1,2934.8,0.00803266]
[1644654370574,1.46780808,2935.1,2934.8,0.00803266]
[1644654370778,2.46780808,2935.1,2934.8,0.00803266]
[1644654370982,1.46780808,2935.1,2934.8,0.00803266]
[1644654371173,2.46780808,2935.1,2934.8,0.00803266]
[1644654371373,2.46780808,2935.1,2934.3,3.40410927]
[1644654371575,1.70650808,2935.0,2934.8,0.00677177]
[1644654371775,1.29750808,2934.9,2934.8,0.00677177]
[1644654371973,2.00650808,2934.9,2934.8,0.00677177]
[1644654372178,3.00650808,2934.9,2934.8,0.00677177]
[1644654372575,3.00650808,2934.9,2934.3,3.43624567]
[1644654372576,1.709,2934.9,2934.3,3.40410927]
[1644654372774,1.29833179,2934.7,2934.3,3.40410927]
[1644654372975,0.5793,2934.6,2934.3,3.40410927]
[1644654373424,0.5793,2934.6,2934.3,3.4]
[1644654374719,0.409,2934.6,2934.3,3.4]
[1644654375120,1.70733179,2934.6,2934.4,0.00283899]
[1644654376523,1.70733179,2934.6,2934.4,0.01146479]
[1644654376823,1.29833179,2934.5,2934.4,0.01146479]
[1644654377070,2.17763179,2934.5,2934.4,0.00768441]
[1644654377468,2.17763179,2934.5,2934.3,3.4]
[1644654377469,0.3,2934.4,2934.3,3.4]
[1644654377668,0.709,2934.4,2934.3,3.4]
[1644654377868,2.00733179,2934.4,2934.3,3.4]
[1644654378069,3.00733179,2934.4,2934.3,3.4]
[1644654378270,3.00733179,2934.4,2934.3,3.019639]
[1644654378470,1.709,2934.4,2934.3,3.019639]
[1644654378774,0.8793,2934.4,2934.3,3.019639]
[1644654378969,0.709,2934.4,2934.3,3.019639]
[1644654380916,2.4369289,2934.4,2934.3,3.019639]
[1644654381325,3.4369289,2934.4,2934.3,3.019639]
[1644654382221,1.709,2934.4,2934.3,3.019639]
[1644654382724,3.00656448,2934.4,2934.3,3.019639]
[1644654382921,2.5805889,2934.7,2934.3,3.019639]
[1644654382922,1.29756448,2934.7,2934.3,3.019639]
[1644654383122,1.29756448,2934.7,2934.3,3.02374827]
[1644654383722,1.81445861,2934.9,2934.4,0.0086258]
[1644654384221,1.59756448,2934.8,2934.4,0.0086258]
[1644654384666,1.59756448,2934.8,2934.3,3.02374827]
[1644654384867,1.59756448,2934.8,2934.4,0.00862575]
[1644654385874,1.59756448,2934.8,2934.3,3.02519247]
[1644654386075,1.59756448,2934.8,2934.4,0.00862575]
[1644654386474,0.3,2934.8,2934.4,0.00862575]
[1644654386681,1.0,2934.8,2934.4,0.00862575]
[1644654386875,2.29756448,2934.8,2934.4,0.00862575]
[1644654387077,2.29756448,2934.8,2934.3,3.02519247]
[1644654387375,2.29756448,2934.8,2934.4,0.00862575]
[1644654387576,2.15021448,2934.7,2934.4,0.00862575]
[1644654387775,1.29756448,2934.6,2934.4,0.00862575]
[1644654387978,1.70656448,2934.6,2934.4,0.00862575]
[1644654388182,2.70656448,2934.6,2934.3,3.02519247]
[1644654388418,2.70656448,2934.6,2934.4,0.00799329]
[1644654388620,1.409,2934.6,2934.4,0.00799329]
[1644654388817,0.409,2934.6,2934.4,0.00799329]
[1644654389018,1.409,2934.6,2934.4,0.00799329]
[1644654389224,0.409,2934.6,2934.4,0.00799329]
[1644654389419,0.409,2934.6,2934.3,3.02519247]
[1644654389618,0.409,2934.6,2934.4,0.00799329]
[1644654390019,0.409,2934.6,2934.5,0.00144355]
[1644654391022,1.70656448,2934.6,2934.5,0.00144355]
[1644654391323,0.409,2934.6,2934.5,0.00144355]
[1644654395173,0.409,2934.6,2934.4,0.00803566]
[1644654395377,0.409,2934.6,2934.3,3.02519271]
[1644654395574,0.409,2934.6,2934.3,3.02108344]
[1644654395814,0.409,2934.6,2934.4,0.00803566]
[1644654396617,0.409,2934.6,2934.3,3.02519271]
[1644654396823,0.409,2934.6,2934.4,0.00803287]
[1644654397520,1.70656448,2934.6,2934.4,0.00803287]
[1644654397721,1.70656448,2934.6,2934.3,3.02519271]
[1644654397919,0.409,2934.6,2934.3,3.02108344]
[1644654398122,0.409,2934.6,2934.4,0.00803287]
[1644654398322,0.5793,2934.6,2934.4,0.00803287]
[1644654398526,1.29756448,2934.6,2934.4,0.00803287]
[1644654398928,1.47686448,2934.7,2934.3,3.02519271]
[1644654399126,0.1703,2934.6,2934.3,3.02108344]
[1644654399333,0.1703,2934.6,2934.4,0.00803287]
[1644654399573,2.05616448,2934.7,2934.4,0.00803287]
[1644654400164,2.05616448,2934.7,2934.5,0.00144366]
[1644654400365,2.35616448,2934.7,2934.5,0.00144366]
[1644654401469,1.29756448,2934.6,2934.5,0.00064366]
[1644654402069,1.70656448,2934.6,2934.5,0.00064366]
[1644654403721,0.409,2934.6,2934.5,0.00064366]
[1644654405624,0.409,2934.6,2934.4,0.008033]
[1644654405826,1.29870317,2934.5,2934.4,0.008033]
[1644654406024,1.70770317,2934.5,2934.4,0.008033]
[1644654406225,2.00770317,2934.5,2934.3,3.019639]
[1644654406426,3.00770317,2934.5,2934.3,3.0276721]
[1644654406825,2.86041177,2934.5,2934.3,3.0276721]
[1644654407093,1.0,2934.4,2934.3,3.0276721]
[1644654407383,1.409,2934.4,2934.3,3.019639]
[1644654407583,1.409,2934.4,2934.3,3.02767215]
[1644654407783,2.70770317,2934.4,2934.3,3.02767215]
[1644654408184,1.70770317,2934.4,2934.3,3.02767215]
[1644654408583,1.70770317,2934.4,2934.3,3.019639]
[1644654411221,0.409,2934.4,2934.3,3.019639]
[1644654413529,1.73496024,2934.6,2934.3,3.019639]
[1644654413730,0.51689413,2934.9,2934.3,3.019639]
[1644654413731,1.30140284,2934.5,2934.3,3.019639]
[1644654413930,1.30140284,2934.6,2934.4,0.00410927]
[1644654414130,1.30140284,2934.6,2934.3,3.019639]
[1644654414584,1.30140284,2934.5,2934.3,3.019639]
[1644654414783,1.30140284,2934.5,2934.4,0.00410927]
[1644654415079,1.60140284,2934.5,2934.3,3.02767211]
[1644654415881,1.60140284,2934.5,2934.3,3.019639]
[1644654416081,1.60140284,2934.5,2934.3,3.02767216]
[1644654417084,1.60140284,2934.5,2934.3,3.019639]
[1644654417289,1.60140284,2934.5,2934.3,3.02767216]
[1644654418318,1.60140284,2934.5,2934.3,3.019639]
[1644654418529,1.60140284,2934.5,2934.3,3.02767216]
[1644654419124,0.3,2934.5,2934.3,3.02767216]
[1644654419324,2.03496024,2934.5,2934.3,3.02767216]
[1644654419522,2.03496024,2934.5,2934.3,3.019639]
[1644654419724,2.03496024,2934.5,2934.3,3.02767216]
[1644654420324,1.73496024,2934.4,2934.3,2.02700019]
[1644654420522,0.3,2934.5,2934.3,2.01896703]
[1644654420723,3.284603,2934.7,2934.3,2.01896703]
[1644654420724,3.584603,2934.7,2934.3,2.01896703]
[1644654420925,0.409,2934.6,2934.3,2.02700019]
[1644654421125,0.409,2934.6,2934.3,1.60441371]
[1644654421126,5.58833853,2934.5,2934.3,1.60441371]
[1644654421325,1.409,2934.4,2934.3,1.60441371]
[1644654421526,1.5793,2934.4,2934.3,1.60441371]
[1644654421725,1.5793,2934.4,2934.3,1.59638055]
[1644654422881,0.5793,2934.4,2934.3,1.59638055]
[1644654424482,0.409,2934.4,2934.3,1.59638055]
[1644654426420,0.87009922,2934.2,2933.8,0.03213766]
[1644654426623,0.87009922,2934.2,2933.5,0.00410927]
[1644654426624,0.409,2934.1,2933.5,0.00410927]
[1644654426823,1.73378337,2933.7,2933.5,0.00410927]
[1644654427122,0.409,2933.6,2933.2,0.00410927]
[1644654427320,0.709,2933.6,2932.9,0.00410927]
[1644654427522,1.30041663,2933.5,2932.9,0.00410927]
[1644654427727,1.70941663,2933.5,2932.9,0.00410927]
[1644654428127,1.409,2933.5,2933.1,0.00301419]
[1644654428329,1.70941663,2933.5,2933.1,0.00301419]
[1644654428528,1.30041663,2933.4,2933.1,0.00301419]
[1644654428728,1.30041663,2933.3,2933.1,0.00301419]
[1644654428927,1.60041663,2933.3,2932.7,0.00410927]
[1644654429133,1.60041663,2933.3,2932.4,0.00410927]
[1644654429329,1.3,2933.3,2932.4,0.00410927]
[1644654430375,2.60041663,2933.3,2932.4,0.00410927]
[1644654430776,3.00941663,2933.3,2932.4,0.00410927]
[1644654430975,1.30041663,2933.2,2932.4,0.00410927]
[1644654431377,2.60041663,2933.2,2932.4,0.00410927]
[1644654431576,2.60041663,2933.2,2932.7,0.0080235]
[1644654431777,1.3,2933.2,2932.7,0.0080235]
[1644654432179,1.3,2933.2,2932.7,0.0041402]
[1644654432677,1.3,2933.2,2932.4,0.00410927]
[1644654434137,0.3,2933.2,2932.4,0.00410927]
[1644654434336,1.22966283,2933.3,2932.4,0.00410927]
[1644654435138,1.30041663,2933.2,2932.4,0.00410927]
[1644654435337,2.47071663,2933.2,2932.5,0.018704]
[1644654435540,0.409,2933.1,2932.5,0.018704]
[1644654435748,0.1703,2933.0,2932.5,0.018704]
[1644654435940,0.409,2932.9,2932.5,0.018704]
[1644654436344,0.709,2932.9,2932.5,0.018704]
[1644654436543,0.709,2932.9,2932.6,0.00861571]
[1644654437472,0.709,2932.9,2932.5,0.018704]
[1644654437672,0.709,2932.9,2932.6,0.00861571]
[1644654438077,2.00941663,2932.9,2932.6,0.00582947]
[1644654438284,0.709,2932.9,2932.6,0.00582947]
[1644654438677,0.709,2932.9,2932.5,0.018704]
[1644654438877,0.1703,2932.8,2932.5,0.018704]
[1644654439077,1.26224,2932.7,2932.5,0.018704]
[1644654439281,1.26224,2932.7,2932.4,3.40410927]
[1644654439282,0.76871484,2932.6,2932.4,1.13522578]
[1644654439485,4.95941663,2932.5,2932.1,0.25]
[1644654439780,0.8534241,2932.1,2931.0,3.7853]
[1644654439980,4.56896607,2932.0,2931.0,3.7853]
[1644654440179,0.409,2931.9,2931.0,3.7853]
[1644654440384,3.56904761,2931.8,2931.0,3.7853]
[1644654440580,0.5795,2931.7,2931.0,3.7853]
[1644654440825,3.64868692,2931.6,2930.6,4.2019]
[1644654441018,0.409,2931.5,2930.6,4.2019]
[1644654441218,3.82665876,2931.4,2931.2,0.008617]
[1644654441418,1.409,2931.3,2931.2,0.008617]
[1644654441621,5.437637,2931.3,2931.2,0.008617]
[1644654442222,5.437637,2931.3,2930.3,4.0045]
[1644654442423,5.437637,2931.3,2931.1,0.0086171]
[1644654442624,3.48045181,2931.2,2931.1,0.0086171]
[1644654442823,4.88945181,2931.2,2931.1,0.0086171]
[1644654443432,4.88945181,2931.2,2930.3,4.0045]
[1644654443727,3.88945181,2931.2,2931.0,0.0086172]
[1644654444328,0.409,2931.2,2931.0,0.0086172]
[1644654444574,0.409,2931.2,2930.3,3.7545]
[1644654444769,0.709,2931.2,2930.3,3.7545]
[1644654444971,0.3,2931.2,2931.0,0.00861726]
[1644654445770,0.3,2931.2,2930.3,3.7545]
[1644654445978,0.3,2931.2,2931.0,0.00861726]
[1644654446376,0.05348746,2931.3,2931.0,0.00861726]
[1644654446777,8.746e-05,2931.3,2931.1,0.1705]
[1644654447180,8.746e-05,2931.3,2930.7,3.4]
[1644654447378,8.746e-05,2931.3,2931.0,0.0086172]
[1644654448178,8.746e-05,2931.3,2930.7,3.4]
[1644654448424,8.746e-05,2931.3,2931.0,0.0086172]
[1644654448632,8.746e-05,2931.3,2931.0,5.0086172]
[1644654449024,8.746e-05,2931.3,2931.0,0.0086172]
[1644654449426,8.746e-05,2931.3,2930.8,1.1868]
[1644654449625,8.746e-05,2931.3,2931.0,0.0086172]
[1644654450425,0.69621869,2932.3,2931.0,0.0086172]
[1644654450626,0.99621869,2932.3,2930.8,1.1868]
[1644654450825,0.99621869,2932.3,2931.3,0.64274781]
[1644654451232,0.99621869,2932.3,2931.0,0.0086172]
[1644654451428,3.30095593,2932.2,2931.0,0.0086172]
[1644654451626,0.1705,2932.1,2931.0,0.0086172]
[1644654451829,1.1705,2932.1,2930.8,6.1868]
[1644654452076,1.3,2932.1,2930.8,6.1868]
[1644654452273,0.1705,2932.0,2931.5,0.00861674]
[1644654452472,0.3,2932.1,2931.5,0.00861674]
[1644654452673,4.11088493,2932.3,2931.5,0.00861674]
[1644654452872,1.0,2932.2,2931.5,0.00861674]
[1644654453075,1.0,2932.2,2931.3,0.74330796]
[1644654453273,0.82571869,2932.3,2931.8,0.00861644]
[1644654454078,3.29346229,2932.2,2931.8,0.00861644]
[1644654454277,1.1705,2932.1,2930.8,1.1868]
[1644654454478,3.42398758,2932.0,2931.9,0.00861628]
[1644654454679,0.1705,2932.0,2931.9,0.00861628]
[1644654454877,1.1705,2932.0,2931.9,0.00861628]
[1644654455078,0.1705,2932.0,2931.9,0.00861628]
[1644654455479,0.1705,2932.0,2930.9,0.0040702]
[1644654455682,0.1705,2932.0,2931.8,0.00861639]
[1644654455918,0.3,2932.1,2931.8,0.00861639]
[1644654456119,0.1705,2932.0,2931.8,0.00861639]
[1644654456528,0.1705,2932.2,2931.8,0.00861639]
[1644654456724,1.1705,2932.2,2931.2,0.02080889]
[1644654456924,1.1705,2932.2,2931.8,0.00798379]
[1644654457126,3.27663147,2932.1,2931.8,0.00798379]
[1644654457324,1.1705,2932.0,2931.8,0.00798379]
[1644654458027,0.409,2931.9,2931.8,3.4]
[1644654458228,0.709,2931.9,2931.8,3.40798379]
[1644654459033,0.709,2931.9,2931.8,3.4]
[1644654459230,0.3,2931.9,2931.8,3.4]
[1644654459690,0.69621869,2932.3,2931.8,3.4]
[1644654459879,1.52571869,2932.3,2931.9,0.0040702]
[1644654460079,1.82571869,2932.3,2932.0,0.02080327]
[1644654460485,1.82571869,2932.3,2932.0,0.02878685]
[1644654461485,0.82571869,2932.3,2932.0,0.02080327]
[1644654461885,0.82571869,2932.3,2932.0,0.02882921]
[1644654462285,0.1705,2932.2,2932.0,0.02882921]
[1644654462486,0.409,2932.1,2932.0,0.02882921]
[1644654462684,0.409,2932.1,2932.0,0.02080327]
[1644654462888,0.709,2932.1,2932.0,0.02882926]
[1644654463922,0.709,2932.1,2932.0,0.02080327]
[1644654465421,0.709,2932.1,2931.9,0.01209337]
[1644654465624,0.409,2932.1,2931.9,0.00802317]
[1644654466222,0.409,2932.1,2931.8,3.4256138]
[1644654466422,0.409,2932.1,2931.8,3.4215436]
[1644654466623,0.409,2932.1,2931.9,0.00802322]
[1644654466831,0.709,2932.1,2931.9,0.00802322]
[1644654467271,1.009,2932.1,2931.9,0.00802322]
[1644654467470,1.009,2932.1,2931.8,3.4256138]
[1644654467671,1.009,2932.1,2931.9,0.00299916]
[1644654468274,1.2586,2932.1,2931.9,0.00299916]
[1644654468674,1.2586,2932.1,2931.8,3.4256138]
[1644654468874,1.2586,2932.1,2931.8,3.4215436]
[1644654469074,1.2586,2932.1,2931.9,0.00802342]
[1644654469675,1.009,2932.1,2931.9,0.00802342]
[1644654469877,1.009,2932.1,2931.8,3.4256138]
[1644654470177,1.009,2932.1,2931.9,0.00802342]
[1644654470921,2.009,2932.1,2931.9,0.00802342]
[1644654471120,2.009,2932.1,2931.8,3.4040702]
[1644654471326,2.009,2932.1,2931.9,0.00802342]
[1644654472323,5.33377642,2932.1,2931.8,3.4040702]
[1644654472523,5.33377642,2932.1,2931.9,0.00802264]
[1644654472926,2.009,2932.1,2931.9,0.00802264]
[1644654473223,5.23877536,2932.1,2931.9,0.00802264]
[1644654473429,1.0,2932.0,2931.9,0.00802264]
[1644654473628,1.409,2932.0,2931.8,3.4]
[1644654473828,1.409,2932.0,2931.9,0.00802264]
[1644654474029,6.28507911,2932.0,2931.8,2.28844323]
[1644654474328,4.2278761,2931.9,2931.8,2.28844323]
[1644654474580,4.6368761,2931.9,2931.8,2.28844323]
[1644654474787,4.9368761,2931.9,2931.8,2.28844323]
[1644654474984,1.709,2931.9,2931.8,2.28844323]
[1644654475187,4.9524466,2931.9,2931.8,2.28844323]
[1644654475787,1.709,2931.9,2931.8,2.28844323]
[1644654475988,4.95415379,2931.9,2931.8,2.28844323]
[1644654476187,0.709,2931.9,2931.8,2.28844323]
[1644654476388,1.709,2931.9,2931.8,2.28844323]
[1644654476993,3.00941663,2931.9,2931.8,2.28844323]
[1644654477189,2.53188537,2931.9,2931.8,2.28844323]
[1644654477396,3.53188537,2931.9,2931.8,2.28844323]
[1644654477589,2.53188537,2931.9,2931.8,2.28844323]
[1644654477789,6.77693728,2931.9,2931.8,2.28844323]
[1644654477993,2.53188537,2931.9,2931.8,2.28844323]
[1644654478190,3.53188537,2931.9,2931.8,2.28844323]
[1644654479033,2.23146874,2931.9,2931.8,2.03844323]
[1644654479434,1.23146874,2931.9,2931.8,2.03844323]
[1644654480042,2.53138856,2931.9,2931.8,2.03844323]
[1644654480337,2.23146874,2931.9,2931.8,2.03844323]
[1644654480536,2.53138856,2931.9,2931.8,2.03844323]
[1644654480737,0.93146874,2931.9,2931.8,2.03844323]
[1644654480936,0.52246874,2931.9,2931.8,2.03844323]
[1644654482193,0.82246874,2931.9,2931.8,2.03844323]
[1644654482597,1.12246874,2931.9,2931.8,2.03844323]
[1644654490970,6.76918138,2931.9,2931.8,2.03844323]
[1644654491169,2.53146874,2931.9,2931.8,2.03844323]
[1644654491773,1.53146874,2931.9,2931.8,2.03844323]
[1644654491973,2.53056694,2931.9,2931.8,2.03844323]
[1644654494824,1.53056694,2931.9,2931.8,2.03844323]
[1644654498380,1.23056694,2931.9,2931.8,2.03844323]
[1644654498579,0.82156694,2931.9,2931.8,2.03844323]
[1644654499279,2.12507911,2931.9,2931.8,2.03844323]
[1644654499480,1.30351217,2931.9,2931.8,2.03844323]
[1644654499683,0.1705,2932.6,2931.8,2.03844323]
[1644654499684,1.30351217,2932.3,2931.8,2.03844323]
[1644654499881,1.30351217,2932.2,2931.8,2.04251343]
[1644654500282,1.30351217,2932.1,2931.8,2.04251343]
[1644654500483,1.30351217,2932.1,2931.8,2.03844323]
[1644654501428,1.30351217,2932.1,2931.8,2.04619517]
[1644654501627,1.60351217,2932.1,2931.8,2.04619517]
[1644654502030,0.3,2932.1,2931.8,2.04619517]
[1644654502230,1.60351217,2932.2,2931.8,2.04619517]
[1644654502429,1.60351217,2932.2,2931.8,2.04251343]
[1644654502630,1.60351217,2932.2,2931.8,2.05026537]
[1644654502829,1.30351217,2932.0,2931.8,2.05026537]
[1644654503031,1.30351217,2932.0,2931.8,2.04619517]
[1644654503238,0.3,2932.2,2931.8,2.04619517]